Workbook

Sheet tension controls
A4: PROJECT: | D4: PAGE:
A5: CLIENT: | D5: DESIGN BY:
A6: JOB: | B6: COLUMN 1 | D6: REVIEW BY:
A7: DATE: | B7: =TODAY() -> 2015-07-01 | D7: www.samotech.net
A9: ECCCENTRICALLY LOADED COLUMNS (TENSION CONTROLS)
A10: w (mm) | B10: 300 | C10: fc' (Mpa) | D10: 20.7
A11: h (mm) | B11: 300 | C11: fy (Mpa) | D11: 275
A12: d' (mm) | B12: 75 | C12: e (mm) | D12: =ROUND(D14/D13*1000,2) -> 1000
A13: no of bars at d' | B13: 10 | C13: Pu actual | D13: 12 | E13: KN
A14: bar dia (mm) | B14: 16 | C14: Mu actual | D14: 12 | E14: KN-m
A15: no of bars at s | B15: =B13 -> 10
A16: bar dia (mm) | B16: =B14 -> 16
A17: no of bars at NA | B17: 0 | C17: Lat tie dia | D17: 10 | E17: mm
A18: For a balanced condition
A19: fs'=fy | D19: ΣMA=0
A20: C1=0.85fc'(h)a | B20: =CONCATENATE(0.85*D10*B11," a") -> 5278.5 a | D20: Pb(x) = C1 (d-a/2)+ C2(d-d')
A21: d = w- d' | B21: =B10-B12 -> 225 | C21: =IF(B21<0,"increase value of w","") ->  | D21: x= | E21: =(((B24*(B21-(B23/2)))+(B25*(B21-B12))))/B28 -> 279.2401065
A22: cb=600d/600+fy | B22: =B21*600/(600+D11) -> 154.2857143 | D22: eb = x- d-(w/2) | E22: =E21-(B21-(B10/2)) -> 204.2401065
A23: a= 0.85 Cb | B23: =B22*0.85 -> 131.1428571 | D23: REMARKS | E23: =IF(E22<D12,"Tension Controls","Compression Controls") -> Tension Controls
A24: C1=0.85fc'(h)a | B24: =0.85*D10*B11*B23 -> 692237.5714 | C24: N
A25: C2=As'fs' | B25: =B13*PI()*(B14^2)*D11/4 -> 552920.307 | C25: N
A26: T = AsFy | B26: =B15*PI()*B16^2*D11/4 -> 552920.307 | C26: N
A27: ΣFv=0 | B27: T + Pb = C1 +C2
A28: Pb = C1+C2-T | B28: =B24+B25-B26 -> 692237.5714 | C28: N
A31: Assume fs' =fy
A32: ΣFv=0 | B32: T + Pn = C1 +C2 | G32: =B10 -> 300
A33: Pn=C1+C2-T | B33: =CONCATENATE((0.85*D10*B11)+B25-B26," a") -> 5278.5 a | C33: N
A34: ΣMA=0
A35: moment arm of Pn | B35: =B21-(B10/2)+D12 -> 1075 | C35: mm
A36: =CONCATENATE(((0.85*D10*B11)+B25-B26)*B35," a=") -> 5674387.5 a= | B36: =CONCATENATE(((0.85*D10*B11)+B25-B26)*(B21), "a") -> 1187662.5a | C36: =CONCATENATE(((0.85*D10*B11)+B25-B26)*-0.5, "a^2") -> -2639.25a^2 | D36: =B25*(B21-B12) -> 82938046.05 | F36: =B11 -> 300
A37: =((0.85*D10*B11)+B25-B26)*B35 -> 5674387.5 | B37: =((0.85*D10*B11)+B25-B26)*(B21) -> 1187662.5 | C37: =((0.85*D10*B11)+B25-B26)*-0.5 -> -2639.25 | D37: =B25*(B21-B12) -> 82938046.05
A38: =-C37 -> 2639.25 | B38: =A37-B37 -> 4486725 | C38: =-D37 -> -82938046.05
A39: =A38/A38 -> 1 | B39: =B38/A38 -> 1700 | C39: =C38/A38 -> -31424.85405
A40: BY QUADRATIC EQUATION | E40: z
A41: a= | B41: =((-B39)+(SQRT((B39^2)-(4*A39*C39))))/(2*A39) -> 18.28846247 | C41: =((-B39)-(SQRT((B39^2)-(4*A39*C39))))/(2*A39) -> -1718.288462
A42: use a = | B42: =MAX(B41:D41) -> 18.28846247
F43: Main Reinforcements
A44: Pn = | B44: =((0.85*D10*B11)+B25-B26)*B42/1000 -> 96.53564913 | C44: KN | F44: =CONCATENATE(B17+B15+B13,"-") -> 20- | G44: =CONCATENATE(B14, " mm diameter main bars") -> 16 mm diameter main bars
A45: Pu = φ Pn | B45: =ROUND(B44*0.7,2) -> 67.57 | C45: KN | F45: Lateral Tie Reinforcement
A46: REMARKS | B46: =IF(E22<D12,CONCATENATE("SAFE LOAD IT COULD CARRY IS ",B45," KN"),"Design Inadequate-Compression Controls") -> SAFE LOAD IT COULD CARRY IS 67.57 KN | F46: =CONCATENATE(D17," mm dia spaced at") -> 10 mm dia spaced at | H46: =CONCATENATE(B64," mm O.C.") -> 256 mm O.C.
A47: Mu = Pu e | B47: =ROUND(B45*D12/1000,2) -> 67.57 | C47: KN-m
A48: REMARKS | B48: =IF(E22<D12,CONCATENATE("SAFE MOMENT IT COULD CARRY IS ",B47," KN-m"),"Design Inadequate-Compression Controls") -> SAFE MOMENT IT COULD CARRY IS 67.57 KN-m
A50: Check
A51: Cb =a/0.85 | B51: =ROUND(B42/0.85,2) -> 21.52
A52: Cb-d' | B52: =ROUND(B51-B12,2) -> -53.48
A53: =CONCATENATE("Es'/",B52,"=0.003/",B51) -> Es'/-53.48=0.003/21.52
A54: Es'= | B54: =B52*0.003/B51 -> -0.007455390335
A55: Es'=fs'/Es
A56: fs' = Es'*Es | B56: =ROUND(B54*200000,0) -> -1491 | C56: MPA
A57: REMARKS | B57: =IF(OR(D11+1=B56,D11-1=B56),"Satisfactory", "Assumption that fs'=fy is not satisfied") -> Assumption that fs'=fy is not satisfied
A58: LATERAL TIE DESIGN
A60: Main bar * 16 = | B60: =16*B14 -> 256
A61: Tie bar * 48 = | B61: =48*D17 -> 480
A62: Least dimension = | B62: =MIN(B10,B11) -> 300
A64: Governing spacing = | B64: =MIN(B60,B61,B62) -> 256

Sheet compression controls
A4: PROJECT: | D4: PAGE:
A5: CLIENT: | D5: DESIGN BY:
A6: JOB: | D6: REVIEW BY:
A7: DATE: | B7: =TODAY() -> 2015-07-01 | D7: www.samotech.net
A9: ECCCENTRICALLY LOADED COLUMNS (COMPRESSION CONTROLS)
A11: w (mm) | B11: 250 | C11: fc' (Mpa) | D11: 20.7
A12: h (mm) | B12: 250 | C12: fy (Mpa) | D12: 275
A13: d' (mm) | B13: 58 | C13: e (mm) | D13: =ROUND(D15/D14*1000,2) -> 95.89
A14: no of bars at d' | B14: 2 | C14: Pu actual | D14: 73 | E14: KN
A15: bar dia (mm) | B15: 16 | C15: Mu actual | D15: 7 | E15: KN-m
A16: no of bars at s | B16: =B14 -> 2
A17: bar dia (mm) | B17: =B15 -> 16
A18: no of bars at NA | B18: 2 | C18: Lat tie dia | D18: 10 | E18: mm
A19: For a balanced condition
A20: fs'=fy | D20: ΣMA=0
A21: C1=0.85fc'(h)a | B21: =CONCATENATE(0.85*D11*B12," a") -> 4398.75 a | D21: Pb(x) = C1 (d-a/2)+ C2(d-d')
A22: d = w- d' | B22: =B11-B13 -> 192 | C22: =IF(B22<0,"increase value of w","") ->  | D22: x= | E22: =(((B32*(B22-(B31/2)))+(B23*(B22-B13))))/B32 -> 166.1483625
A23: C2=As'fs' | B23: =B14*PI()*(B15^2)*D12/4 -> 110584.0614 | C23: N | D23: eb = x- d-(w/2) | E23: =E22-(B22-(B11/2)) -> 99.14836247
A24: T = AsFy | B24: =B16*PI()*B17^2*D12/4 -> 110584.0614 | C24: N | D24: REMARKS | E24: =IF(E23<D13,"Tension Controls","Compression Controls") -> Compression Controls
A25: ΣFv=0 | B25: T + Pb = C1 +C2
A26: =B24 -> 110584.0614 | B26: + Pb = | C26: =CONCATENATE(B21," +") -> 4398.75 a + | D26: =B23 -> 110584.0614
A27: Pb= | B27: =B21 -> 4398.75 a
A28: By ratio and proportion
A29: Ey+0.003/d = Ec/Cb
A30: Cb=600d/600+fy | B30: =600*B22/(600+D12) -> 131.6571429 | C30: mm
A31: a=0.85Cb | B31: =0.85*B30 -> 111.9085714 | C31: mm
A32: Pb= | B32: =0.85*D11*B12*B31 -> 492257.8286 | C32: N
A35: fs = fy
A36: C2= As'fy | B36: =B14*PI()*(B15^2)*D12/4 -> 110584.0614
A37: C1=0.85fc' *a*b | B37: =CONCATENATE("= ",0.85*D11*0.85*B12," C") -> = 3738.9375 C
A38: Es/d-C = εc/C
A39: εs = 0.003 (d-C)/C | C39: fs=εs Es
A40: εs = (0.003 (d-C)/C)200000 | C40: =600(d-C)/C
A41: T=Asfs | B41: =ROUND(PI()*B17^2*3*600/4,2) -> 361911.47 | C41: (d-C)/C
A42: ΣFv=0 | B42: T+Pn=C1+C2
A43: =CONCATENATE(B41,C41) -> 361911.47(d-C)/C | C43: + Pn | D43: =CONCATENATE(B37," +") -> = 3738.9375 C + | E43: =B36 -> 110584.0614 | F43: Equation 1
A44: ΣMA=0
A45: moment arm of Pn | B45: =B22-(B11/2)+D13 -> 162.89 | C45: mm
A46: =CONCATENATE(B45," Pn ") -> 162.89 Pn | B46: =CONCATENATE(B37,"(",B22,"-0.425C) +") -> = 3738.9375 C(192-0.425C) + | D46: =B36*(B22-B13) -> 14818264.23
A47: Pn = | B47: =ROUND(0.85*D11*0.85*B12/B45,2) -> 22.95 | C47: =CONCATENATE("C(",B22,"-0.425C) +") -> C(192-0.425C) + | D47: =D46/B45 -> 90970.98796 | F47: Equation 2
A48: Combining Eq 1 and 2
A49: =B41*B22 -> 69487002.24 | B49: =-B41 -> -361911.47 | C49: =CONCATENATE(B47*B22,"C") -> 4406.4C | D49: =CONCATENATE(-B47*0.425," C^2") -> -9.75375 C^2 | E49: =ROUND(D47,2) -> 90970.99 | F49: =CONCATENATE(-0.85*D11*0.85*B12," C") -> -3738.9375 C | G49: =ROUND(-E43,2) -> -110584.06 | H49: =0
A50: C
A51: =A49 -> 69487002.24 | B51: =CONCATENATE(B49,"C") -> -361911.47C | C51: =CONCATENATE(B47*B22,"C^2") -> 4406.4C^2 | D51: =CONCATENATE(-B47*0.425," C^3") -> -9.75375 C^3 | E51: =CONCATENATE(E49,"C") -> 90970.99C | F51: =CONCATENATE(-0.85*D11*0.85*B12," C^2") -> -3738.9375 C^2 | G51: =CONCATENATE(G49," C") -> -110584.06 C | H51: =0
A52: =A49 -> 69487002.24 | B52: =B49 -> -361911.47 | C52: =B47*B22 -> 4406.4 | D52: =-B47*0.425 -> -9.75375 | E52: =E49 -> 90970.99 | F52: =-0.85*D11*0.85*B12 -> -3738.9375 | G52: =G49 -> -110584.06
A53: =D52 -> -9.75375 | B53: =C52 -> 4406.4 | C53: =F52 -> -3738.9375 | D53: =B52 -> -361911.47 | E53: =E52 -> 90970.99 | F53: =G52 -> -110584.06 | G53: =A51 -> 69487002.24
A54: =A53/A53 -> 1 | B54: =ROUND((B53+C53)/A53,2) -> -68.43 | C54: =ROUND((D53+E53+F53)/A53,2) -> 39115.68 | D54: =ROUND(G53/A53,2) -> -7124131.97
A55: c^3 | B55: =CONCATENATE(B54,"C^2") -> -68.43C^2 | C55: =CONCATENATE(C54,"C") -> 39115.68C | D55: =D54 -> -7124131.97 | E55: =0
A56: Using Newtons Law of Approximation:
A57: y= | B57: =(B59^3)+(B54*B59^2)+(C54*B59)+D54 -> 61.74918765
A58: y'= | B58: =(3*B59^2)+(B54*2*B59)+C54 -> 80943.13376 | G58: =B11 -> 250
A59: C1 | B59: 143.0713017
A60: C= C1 - y/y' | B60: =B59-(B57/B58) -> 143.0705388
B61: =B57/B58 -> 0.0007628712255
A62: =B41*(B22-B60)/B60 -> 123772.0453 | B62: +Pn = | C62: =0.85*D11*0.85*B12*B60 -> 534931.8028 | D62: =E43 -> 110584.0614 | F62: =B12 -> 250
A63: Pn = | B63: =C62+D62-A62 -> 521743.8188 | C63: N
A64: Pn = | B64: =ROUND(B63/1000,2) -> 521.74 | C64: KN
A65: Pu = φ Pn | B65: =ROUND(B64*0.7,2) -> 365.22 | C65: KN
A66: REMARKS | B66: =IF(E23<D13,"Design Inadequate-Tension Controls",CONCATENATE("SAFE LOAD IT COULD CARRY IS ",B65," KN")) -> SAFE LOAD IT COULD CARRY IS 365.22 KN | F66: Main Reinforcements
A67: Mu=Pu e | B67: =ROUND(B65*D13/1000,2) -> 35.02 | C67: KN-m | F67: =CONCATENATE(B14+B16+B18, " -") -> 6 - | G67: =CONCATENATE(B15, " mm diameter main bars") -> 16 mm diameter main bars
A68: REMARKS | B68: =IF(E23<D1,"Design Inadequate-Compression Controls",CONCATENATE("SAFE MOMENT IT COULD CARRY IS ",B67," KN-m")) -> SAFE MOMENT IT COULD CARRY IS 35.02 KN-m | F68: Lateral Tie Reinforcement
A69: Check | F69: =CONCATENATE(D18," mm dia spaced at") -> 10 mm dia spaced at | H69: =CONCATENATE(B79," mm O.C.") -> 250 mm O.C.
A70: εs'/C-d' = 0.003/C | C70: εs'= | D70: =0.003*(B60-B13)/B60 -> 0.0017838167
C71: εy= fy/Es | D71: =D12/200000 -> 0.001375
A72: REMARKS | B72: =IF(D71<D70,"Satisfactory-Compression Steel Yields","Design Error-Compression steel did not yield") -> Satisfactory-Compression Steel Yields
A73: LATERAL TIE DESIGN
A75: Main bar * 16 = | B75: =16*B15 -> 256
A76: Tie bar * 48 = | B76: =48*D18 -> 480
A77: Least dimension = | B77: =MIN(B11,B12) -> 250
A79: Governing spacing = | B79: =MIN(B75,B76,B77) -> 250

Sheet Breslers Eq
A1: PROJECT: | D1: PAGE:
A2: CLIENT: | D2: DESIGN BY:
A3: JOB: | D3: REVIEW BY:
A4: DATE: | D4: www.samotech.net
A6: COLUMNS SUBJECTED TO BENDING ON BOTH AXES
A7: BRESLER'S EQUATION
A11: w (mm) | B11: 300 | C11: fc' (Mpa) | D11: 20.7
A12: h (mm) | B12: 300 | C12: fy (Mpa) | D12: 275
A13: d' (mm) | B13: 38 | C13: Pu actual = | D13: 187
A14: no of bars at d' | B14: 3
A15: bar dia (mm) | B15: 16
A16: no of bars at s | B16: =B14 -> 3
A17: bar dia (mm) | B17: =B15 -> 16
A18: no of bars at NA | B18: 0 | C18: Lat tie dia | D18: 10 | E18: mm
A20: Pnx = | B20: 419 | C20: theoretical axial capacity if bending occurs about x-axis only
A21: Pny = | B21: 1457 | C21: theoretical axial capacity if bending occurs about y-axis only
A24: Ag | B24: =B11*B12 -> 90000 | C24: mm2
A25: Ast | B25: =PI()*B15*B15*(B14+B16+B18)/4 -> 1206.371579 | C25: mm2
A26: Po | B26: =((B25*D12)+((B24-B25)*(0.85*D11)))/1000 -> 1894.076076 | C26: KN
A28: 1/Pnx | B28: =1/B20 -> 0.002386634845
A29: 1/Pny | B29: =1/B21 -> 0.0006863417982
A30: 1/Po | B30: =1/B26 -> 0.0005279618979
A31: 1/Pn | B31: =B28+B29-B30 -> 0.002545014745
A32: Pn= | B32: =1/B31 -> 392.9250319
A33: Pu= | B33: =0.7*B32 -> 275.0475223
A34: =IF(B32>=0.1*B26,"BRESLER EQUATION IS APPLICABLE","BRESLER'S EQUATION IS NOT APPLICABLE") -> BRESLER EQUATION IS APPLICABLE
A35: =IF(B33>=D13,"SATISFACTORY","INADEQUATE") -> SATISFACTORY
